bitfinex/quotes_ETHUSD_20250611
["timestamp","ask_amount","ask_price","bid_price","bid_amount"]
[1749643430585,3.61177295,2768.8,2768.7,1.63012705]
[1749643430787,7.29177295,2768.8,2768.7,1.63012705]
[1749643431129,7.29177295,2768.8,2768.7,1.96822536]
[1749643431475,7.29177295,2768.8,2768.7,0.55]
[1749643431677,7.29177295,2768.8,2768.7,1.63012705]
[1749643431843,7.29177295,2768.8,2768.7,1.96822634]
[1749643432028,8.38210638,2768.8,2768.7,0.88810193]
[1749643432226,3.61193382,2768.6,2768.5,1.08012705]
[1749643432431,7.29193382,2768.6,2768.5,1.63012705]
[1749643433231,7.29193382,2768.6,2768.5,1.96808173]
[1749643433562,7.29193382,2768.6,2768.5,1.63012705]
[1749643433773,7.29193382,2768.6,2768.5,0.88797211]
[1749643433774,8.45830754,2768.6,2768.5,0.88797211]
[1749643433980,8.45830754,2768.6,2768.5,0.55]
[1749643434144,8.45830754,2768.6,2768.5,0.88799054]
[1749643434345,8.45830754,2768.6,2768.5,0.88799294]
[1749643434553,8.45830754,2768.6,2768.5,0.55]
[1749643435265,8.45830754,2768.6,2768.5,0.88798785]
[1749643435457,8.45830754,2768.6,2768.5,0.88799069]
[1749643435657,8.45830754,2768.6,2768.5,0.88799082]
[1749643435895,8.45830754,2768.6,2768.2,1.08012705]
[1749643435896,15.520667,2768.6,2768.2,1.08012705]
[1749643436074,5.57197291,2768.5,2767.9,1.08012705]
[1749643436373,3.61268421,2768.1,2768.0,1.63012705]
[1749643436543,7.29568421,2768.1,2768.0,1.96813307]
[1749643436743,7.29568421,2768.1,2768.0,1.96813345]
[1749643436971,7.29568421,2768.1,2768.0,1.96813386]
[1749643437178,3.683,2768.1,2768.0,1.63012705]
[1749643437682,3.61244064,2768.3,2768.1,0.55]
[1749643437885,3.61244064,2768.3,2768.1,1.62934094]
[1749643437886,3.682,2768.2,2768.1,1.62934094]
[1749643438379,3.682,2768.2,2768.1,1.96732302]
[1749643438566,3.682,2768.2,2768.1,1.62934094]
[1749643438887,3.682,2768.2,2768.1,1.96732087]
[1749643439081,3.61239676,2768.3,2768.1,1.62934094]
[1749643439385,3.682,2768.2,2768.1,1.62934094]
[1749643439584,3.61219476,2768.4,2768.1,1.96732047]
[1749643439769,7.29341416,2768.3,2768.2,1.62934094]
[1749643439949,7.29341416,2768.3,2768.2,0.88797971]
[1749643440150,3.61241416,2768.3,2768.2,0.88798051]
[1749643440349,7.29341416,2768.3,2768.2,0.55]
[1749643440760,7.29341416,2768.3,2768.2,1.62934094]
[1749643440960,7.29341416,2768.3,2768.2,0.55522483]
[1749643442498,7.29341416,2768.3,2768.2,1.6397906]
[1749643442795,7.29341416,2768.3,2768.2,0.56044966]
[1749643443598,7.29341416,2768.3,2768.2,1.63456577]
[1749643443769,7.29341416,2768.3,2768.2,1.63541262]
[1749643445268,7.29341416,2768.3,2768.2,0.56522483]
[1749643445455,7.29341416,2768.3,2768.2,1.64541262]
[1749643445655,7.29341416,2768.3,2768.2,0.56522483]
[1749643446195,7.29341416,2768.3,2768.2,1.64541262]
[1749643446790,3.61241416,2768.3,2768.2,1.64541262]
[1749643446992,7.28941416,2768.3,2768.2,1.64541262]
[1749643447696,0.953,2768.8,2768.3,1.3558]
[1749643447901,0.765,2768.9,2768.3,1.3558]
[1749643447902,3.682,2768.7,2768.5,1.63032612]
[1749643448094,7.29393382,2768.6,2768.5,1.63032612]
[1749643448258,0.765,2769.8,2768.7,0.55]
[1749643448462,0.765,2769.8,2768.6,0.8058]
[1749643448463,3.689,2769.5,2769.1,0.55]
[1749643448659,7.29893106,2769.4,2769.1,0.55]
[1749643448872,3.61095287,2769.4,2769.1,1.63021249]
[1749643449068,0.765,2769.8,2769.3,0.55]
[1749643449272,1.93079207,2770.5,2769.8,10.55]
[1749643449609,3.693,2770.4,2770.2,0.55]
[1749643449781,3.693,2770.3,2770.2,0.55]
[1749643450198,3.693,2770.3,2770.2,1.83847391]
[1749643450199,3.695,2770.3,2770.2,1.83847391]
[1749643450507,3.695,2770.6,2770.4,0.55]
[1749643450712,0.953,2771.0,2770.6,10.55]
[1749643450908,1.0,2771.8,2771.2,0.55]
[1749643451112,1.0,2771.8,2771.4,0.55]
[1749643451314,1.0,2771.8,2771.4,10.0]
[1749643451484,1.0,2771.8,2771.7,0.55]
[1749643451684,1.0,2771.8,2771.5,0.0289855]
[1749643451883,3.754,2771.7,2771.6,0.55]
[1749643452084,7.83729407,2771.7,2771.6,0.55]
[1749643452418,3.60806199,2771.6,2770.9,0.7643]
[1749643452725,1.0,2771.8,2771.1,9.61785115]
[1749643452885,1.0,2771.8,2771.6,0.55]
[1749643453212,49.34802208,2773.5,2771.6,0.55]
[1749643453213,10.0,2774.0,2772.0,0.55]
[1749643453371,0.7618,2775.3,2771.9,0.8283]
[1749643453372,0.36279263,2775.8,2774.0,0.8283]
[1749643453576,2.87840306,2776.8,2774.0,0.8283]
[1749643453577,1.0797345,2777.3,2775.7,10.0]
[1749643453816,1.06858322,2778.8,2776.6,19.61785115]
[1749643453970,0.1879857,2778.0,2776.7,10.0]
[1749643454173,22.49205905,2776.9,2776.8,19.61785115]
[1749643454369,18.33633219,2776.9,2776.8,19.61785115]
[1749643454595,15.25743219,2776.9,2776.7,0.35936461]
[1749643454812,16.72327181,2776.9,2774.7,1.06858322]
[1749643454985,15.25743219,2776.9,2776.0,9.61785115]
[1749643455310,15.25743219,2776.9,2776.5,6.96356325]
[1749643455474,15.25743219,2776.9,2775.8,0.7949]
[1749643455676,15.25743219,2776.9,2776.0,6.96356325]
[1749643455677,16.78317541,2776.9,2776.0,6.96356325]
[1749643455895,15.25743219,2776.9,2776.6,6.96356325]
[1749643456111,15.25743219,2776.9,2775.8,0.7949]
[1749643456282,4.121,2776.8,2775.8,0.7949]
[1749643456689,4.129,2776.7,2776.1,10.0]
[1749643457026,15.25743219,2776.9,2776.5,10.0]
[1749643457243,15.25743219,2776.9,2776.0,10.0]
[1749643457376,15.25743219,2776.9,2776.2,0.18903934]
[1749643458526,15.25743219,2776.9,2776.6,10.0]
[1749643459015,15.25743219,2776.9,2776.7,0.2179908]
[1749643459317,15.25743219,2776.9,2776.8,1.46090398]
[1749643459776,15.25743219,2776.9,2776.8,0.70008948]
[1749643460470,15.25743219,2776.9,2776.8,1.00071704]
[1749643460675,19.49443219,2776.9,2776.8,1.00071704]
[1749643461380,15.25743219,2776.9,2776.8,1.00071704]
[1749643462132,15.25743219,2776.9,2776.8,0.21798399]
[1749643462713,25.03411336,2776.9,2776.8,0.21798399]
[1749643462985,3.60192286,2776.3,2775.3,0.7503]
[1749643463196,4.234,2776.2,2775.4,0.3007792]
[1749643463678,7.77556325,2776.1,2775.4,0.3007792]
[1749643464228,3.60295442,2775.5,2775.4,0.3007792]
[1749643464415,3.60422815,2774.6,2773.8,0.8193]
[1749643464619,4.245,2774.5,2773.9,0.30094185]
[1749643464915,3.60490266,2774.0,2773.9,0.30094185]
[1749643465232,7.84790266,2774.0,2773.9,0.30094185]
[1749643465632,3.60516259,2773.8,2771.9,1.79068116]
[1749643465830,3.60516259,2773.8,2772.0,7.72466325]
[1749643465831,0.43616626,2773.7,2772.0,7.72466325]
[1749643466042,0.43616626,2773.7,2772.1,10.0]
[1749643466211,4.245,2773.6,2772.2,0.3011264]
[1749643466544,11.20856325,2773.6,2772.2,0.3011264]
[1749643467226,7.85045686,2773.6,2772.2,0.3011264]
[1749643467430,0.91264569,2773.5,2772.2,0.3011264]
[1749643467601,4.243,2773.4,2772.5,10.0]
[1749643467804,4.243,2773.5,2772.6,0.85108295]
[1749643468004,9.337,2774.0,2772.8,0.55]
[1749643468204,4.243,2773.9,2773.0,0.55]
[1749643468405,1.276,2774.3,2773.0,0.85103952]
[1749643468406,4.243,2773.8,2773.0,0.85103952]
[1749643468611,3.60529256,2773.7,2773.0,0.30103952]
[1749643468796,3.60607262,2773.1,2773.0,0.30103952]
[1749643468991,4.243,2773.1,2773.0,0.30103952]
[1749643469195,4.244,2773.2,2773.0,0.30103952]
[1749643469498,3.60607262,2773.1,2773.0,0.30103952]
[1749643469694,4.242,2773.1,2773.0,0.30103952]
[1749643470321,4.24,2773.3,2773.0,0.30103952]
[1749643470798,3.60607262,2773.1,2773.0,0.30103952]
[1749643471704,10.0,2773.0,2771.2,0.8113]
[1749643471902,3.60748021,2772.1,2770.6,0.8113]
[1749643472135,3.60932649,2770.6,2770.1,0.7741]
[1749643472343,3.6095005,2770.5,2770.1,0.7741]
[1749643472636,9.339,2771.7,2770.1,1.12804114]
[1749643472836,1.276,2771.1,2770.1,1.12804114]
[1749643473049,7.8638148,2771.0,2770.1,1.12804114]
[1749643473250,9.339,2771.7,2770.1,1.12804114]
[1749643473416,1.276,2771.3,2770.1,1.12804114]
[1749643473745,3.60934119,2770.6,2770.1,1.12804114]
[1749643473956,4.253,2770.6,2770.1,1.12804114]
[1749643474312,4.253,2770.6,2769.5,0.8184]
[1749643474567,12.76915502,2770.5,2769.3,0.66666667]
[1749643474852,6.8099155,2770.4,2769.3,0.66666667]
[1749643475083,3.61078351,2769.5,2769.3,0.66666667]
[1749643475257,7.86889044,2769.4,2769.3,0.66666667]
[1749643475469,7.86889044,2769.4,2767.7,9.15968924]
[1749643475470,4.258,2769.4,2766.5,9.842]
[1749643475602,4.258,2769.4,2767.6,0.18839574]
[1749643475603,9.15968924,2768.9,2767.6,0.18839574]
[1749643475805,4.259,2768.8,2767.3,1.18570975]
[1749643476007,5.536,2768.7,2767.3,1.18570975]
[1749643476324,3.61363061,2767.3,2767.2,0.18841618]
[1749643476558,4.285,2767.3,2767.2,0.18841618]
[1749643476709,7.89863061,2767.3,2767.2,0.18841618]
[1749643477172,3.61426667,2766.9,2764.7,0.7876]
[1749643477312,3.61676733,2764.9,2764.8,0.1970988]
[1749643477510,3.6171696,2764.6,2764.2,0.7876]
[1749643477718,9.342,2766.0,2764.2,0.7876]
[1749643478069,9.342,2766.0,2764.2,11.27328924]
[1749643478070,3.61542746,2766.0,2764.2,11.27328924]
[1749643478275,3.61409463,2767.0,2765.0,9.15968924]
[1749643478560,0.8238,2767.1,2766.2,10.0]
[1749643478895,4.384,2767.7,2765.9,0.55]
[1749643479159,4.403,2767.6,2765.9,0.55]
[1749643479327,4.403,2767.6,2765.7,9.15968924]
[1749643479328,4.403,2767.6,2766.2,10.55]
[1749643479527,8.01626216,2767.6,2766.2,10.55]
[1749643479726,8.01626216,2767.6,2765.4,0.7664]
[1749643479727,3.61398908,2767.1,2765.9,0.91008449]
[1749643479933,4.403,2767.0,2765.9,0.91008449]
[1749643480251,4.402,2767.6,2766.1,0.55]
[1749643480624,4.4,2767.9,2766.5,10.55]
[1749643480951,4.4,2767.9,2766.6,0.55]
[1749643481117,4.4,2767.9,2766.2,0.7698]
[1749643481118,0.7576,2768.5,2766.3,0.55]
[1749643481318,0.7576,2768.5,2766.3,10.55]
[1749643481523,9.15968924,2768.2,2765.9,0.35896509]
[1749643481724,9.15968924,2768.2,2765.5,0.7822]
[1749643481725,4.399,2768.4,2766.0,0.8086]
[1749643481923,0.51566,2768.3,2766.1,0.55]
[1749643482459,3.61274216,2768.0,2766.1,0.55]
[1749643482677,3.61267551,2768.1,2766.5,10.55]
[1749643482884,0.5,2771.4,2767.4,9.15968924]
[1749643483178,0.5,2771.4,2766.5,10.55]
[1749643483179,3.0745667,2770.7,2769.1,10.55]
[1749643483381,3.60869501,2771.1,2769.3,0.55]
[1749643483568,3.61059685,2769.7,2769.3,0.55]
[1749643483769,3.61025167,2769.9,2769.3,0.55]
[1749643483976,8.05364269,2770.4,2769.3,0.55]
[1749643484279,3.61049933,2769.7,2768.5,0.8319]
[1749643484477,4.447,2769.6,2768.6,0.55]
[1749643484683,9.15968924,2769.4,2767.9,0.7808]
[1749643484887,9.15968924,2769.0,2767.9,0.7808]
[1749643485056,9.15968924,2768.2,2767.3,0.7808]
[1749643485243,8.05961765,2768.1,2767.3,0.7808]
[1749643485562,4.447,2768.2,2767.3,0.7808]
[1749643485947,4.443,2768.8,2767.4,0.55]
[1749643486143,8.05478315,2768.8,2767.4,0.55]
[1749643486343,4.443,2768.8,2767.4,0.55]
[1749643486580,0.769,2769.5,2767.4,0.55]
[1749643486753,3.61089044,2769.4,2767.7,10.55]
[1749643486958,4.44,2769.6,2767.9,0.55]
[1749643487159,4.44,2769.6,2767.9,10.55]
[1749643487353,8.05067058,2769.6,2767.9,10.55]
[1749643487554,1.424,2769.7,2768.1,10.55]
[1749643487555,3.61091011,2769.4,2768.1,10.55]
[1749643487768,0.8265,2770.1,2768.3,0.55]
[1749643487970,3.61054958,2769.7,2768.3,0.55]
[1749643488174,3.61036685,2769.9,2768.3,0.55]
[1749643488472,0.91927974,2770.4,2769.7,0.55]
[1749643488782,0.91927974,2770.4,2769.3,10.8071]
[1749643488783,3.61010318,2770.1,2769.4,0.55]
[1749643488987,5.86,2770.5,2769.4,0.55]
[1749643489152,3.61005382,2770.1,2769.4,0.55]
[1749643489479,4.433,2770.4,2769.4,0.55]
[1749643489854,1.424,2770.5,2769.4,0.55]
[1749643490054,2.2558,2771.3,2770.3,0.55]
[1749643490261,2.2558,2771.3,2770.5,0.55]
[1749643490262,4.429,2770.9,2770.5,0.55]
[1749643490475,0.22558,2771.2,2770.5,0.55]
[1749643490697,2.2558,2771.3,2769.6,0.55]
[1749643490698,1.424,2771.3,2769.6,0.55]
[1749643490886,0.35237885,2771.6,2770.2,0.55]
[1749643491190,0.6667,2771.9,2770.4,10.55]
[1749643491398,0.6667,2771.9,2770.5,0.55]
[1749643491693,0.6667,2771.9,2770.5,1.3618]
[1749643491982,0.6667,2771.9,2770.8,10.55]
[1749643492186,0.6667,2771.9,2770.8,0.55]
[1749643492387,4.27433753,2771.9,2770.6,0.55]
[1749643492588,0.6667,2771.9,2770.5,0.8118]
[1749643492806,0.6667,2771.9,2770.6,0.55]
[1749643493006,0.6667,2771.9,2770.9,0.55]
[1749643493209,0.6667,2771.9,2771.3,10.55]
[1749643493383,0.6667,2771.9,2771.5,0.55]
[1749643493711,0.6667,2771.9,2771.6,0.55]
[1749643494209,1.424,2773.6,2771.8,0.55]
[1749643494369,3.60555255,2773.5,2771.8,0.55]
[1749643494574,1.424,2773.6,2772.0,0.55]
[1749643494575,3.60612316,2773.1,2772.0,0.55]
[1749643494813,1.424,2773.6,2771.8,0.55]
[1749643495110,3.60355731,2775.1,2772.1,0.7775]
[1749643495316,5.2245,2775.3,2773.0,9.15968924]
[1749643495478,5.2245,2775.3,2773.2,0.55]
[1749643495813,5.2245,2775.3,2773.6,10.55]
[1749643495814,0.8085,2775.3,2773.6,10.55]
[1749643496012,1.424,2775.6,2774.1,0.785]
[1749643496308,1.424,2775.6,2774.2,0.55]
[1749643496468,3.60381056,2774.9,2774.2,0.55]
[1749643496675,1.35918555,2776.4,2774.2,9.70968924]
[1749643496875,0.7959,2776.4,2774.4,0.55]
[1749643497123,10.0,2776.3,2774.4,0.55]
[1749643497310,1.99555892,2776.2,2774.5,10.55]
[1749643497619,0.3677781,2776.4,2774.9,0.55]
[1749643497849,0.3677781,2776.4,2774.6,0.8007]
[1749643497850,0.3677781,2776.4,2775.1,0.55]
[1749643498222,10.0,2776.2,2774.7,0.55]
[1749643498426,10.7602,2775.8,2774.6,0.8007]
[1749643498625,9.15968924,2775.1,2774.0,0.8241]
[1749643498834,15.874,2775.0,2773.0,0.8241]
[1749643499041,15.874,2775.0,2773.1,0.1977058]
[1749643499251,15.874,2775.0,2773.0,0.8241]
[1749643499553,10.7502,2774.6,2773.0,0.8241]
[1749643499756,5.87,2774.5,2773.0,0.8241]
[1749643499921,19.15968924,2774.6,2773.0,0.8241]
[1749643500117,1.86263745,2777.1,2773.0,0.8241]
[1749643500314,0.1,2777.4,2774.1,0.5]
[1749643500315,16.85761729,2776.9,2774.1,0.5]
[1749643500527,16.85761729,2776.9,2774.3,1.04725377]
[1749643500726,16.85761729,2776.9,2774.8,10.0]
[1749643501018,16.85761729,2776.9,2774.4,10.0]
[1749643501216,0.1,2777.4,2775.1,1.80138944]
[1749643501541,21.963,2778.8,2776.4,0.546]
[1749643501542,0.18789202,2778.8,2776.4,0.546]
[1749643501893,0.90946787,2780.9,2777.4,0.546]
[1749643501894,5.74,2779.8,2777.4,0.546]
[1749643502020,5.74,2779.8,2775.5,1.38460764]
[1749643502021,9.65968924,2778.7,2774.8,1.04725377]
[1749643502360,9.65968924,2778.7,2774.5,5.07353738]
[1749643502361,10.0,2778.5,2775.6,0.11704821]
[1749643502516,6.5226,2778.6,2775.7,0.19799176]
[1749643502517,5.786,2778.4,2775.7,0.19799176]
[1749643502719,0.5786,2778.3,2775.6,0.11704821]
[1749643502915,0.5786,2778.3,2775.8,0.11703978]
[1749643503235,10.5786,2778.3,2775.9,9.15968924]
[1749643503433,0.63646,2778.2,2776.5,10.0]
[1749643503677,10.63646,2778.2,2775.9,10.0]
[1749643504381,10.63646,2778.2,2775.8,9.27672902]
[1749643504382,10.63646,2778.2,2775.8,0.11703978]
[1749643505134,10.63646,2778.2,2775.9,0.8155]
[1749643507128,10.63646,2778.2,2776.2,10.0]
[1749643507322,10.63646,2778.2,2775.9,0.8155]
[1749643507323,1.646846,2778.1,2776.4,10.0]
[1749643507640,1.646846,2778.1,2776.3,9.15968924]
[1749643507641,5.797,2778.4,2776.9,10.0]
[1749643507834,5.797,2778.4,2775.8,0.11703978]
[1749643507835,0.7626,2778.6,2777.3,10.0]
[1749643508027,6.5556,2778.6,2777.3,10.0]
[1749643508220,5.79,2778.9,2777.7,10.0]
[1749643508624,0.7569,2779.2,2777.7,10.0]
[1749643508625,0.7569,2779.2,2778.2,10.0]
[1749643508826,0.7569,2779.2,2777.3,10.0]
[1749643509027,0.7569,2779.2,2777.4,1.91596892]
[1749643509227,0.7569,2779.2,2777.8,10.0]
[1749643509642,10.7569,2779.2,2777.1,0.8051]
[1749643509889,0.30146405,2779.1,2777.1,0.8051]
[1749643510238,10.0,2779.0,2776.6,0.8116]
[1749643510436,0.7874,2778.8,2776.6,0.8116]
[1749643510634,10.0,2778.6,2776.6,0.8116]
[1749643510934,0.7838,2778.3,2775.9,0.8276]
[1749643511184,0.30146405,2778.2,2775.9,0.8276]
[1749643511392,0.55,2778.1,2775.9,0.8276]
[1749643511653,1.08266405,2778.0,2775.9,0.8276]
[1749643511853,6.06846405,2777.9,2776.0,9.15968924]
[1749643512079,0.98643046,2777.8,2776.1,0.99872892]
[1749643512290,0.30146405,2777.7,2775.9,0.8276]
[1749643512479,3.60087739,2777.2,2775.9,0.8276]
[1749643512681,3.60100828,2777.0,2775.9,0.8276]
[1749643512892,10.44899597,2776.9,2775.3,0.8083]
[1749643513102,1.0448996,2776.8,2774.7,0.8083]
[1749643513399,1.0448996,2776.8,2773.0,9.15968924]
[1749643513400,10.0,2775.8,2773.0,9.15968924]
[1749643513702,0.7584,2774.8,2772.9,9.96798924]
[1749643514023,6.07346405,2774.7,2772.9,9.96798924]
[1749643514172,6.07346405,2774.7,2773.0,10.99679892]
[1749643514173,3.60433548,2774.5,2773.0,10.99679892]
[1749643514360,0.30146405,2774.4,2773.0,0.99679892]
[1749643514556,3.90592829,2774.4,2773.0,0.99679892]
[1749643514882,0.30146405,2774.4,2773.3,9.15968924]
[1749643515083,6.06246405,2774.4,2773.4,10.0]
[1749643515304,6.06246405,2774.4,2773.0,0.99679892]
[1749643515482,6.06246405,2774.4,2773.4,10.0]
[1749643515808,0.30146405,2774.4,2773.4,10.0]
[1749643516313,0.30146405,2774.4,2773.9,0.55]
[1749643517434,0.30146405,2774.4,2774.2,10.0]
[1749643517589,0.30146405,2774.4,2774.3,10.55]
[1749643517804,0.30146405,2774.4,2774.3,10.0]
[1749643518425,0.30146405,2774.4,2773.4,0.7525]
[1749643518641,0.30146405,2774.4,2772.6,0.8015]
[1749643518789,0.7625,2774.3,2772.6,0.8015]
[1749643519144,0.30146405,2774.2,2772.9,10.0]
[1749643519304,0.30146405,2774.2,2773.2,9.15968924]
[1749643519503,0.30146405,2774.2,2773.3,10.55]
[1749643519943,0.30146405,2774.2,2772.9,10.0]
[1749643520309,0.30146405,2774.2,2773.0,0.55]
[1749643520542,0.30146405,2774.2,2773.3,10.55]
[1749643521001,0.30146405,2774.2,2773.9,0.55]
[1749643521198,0.30146405,2774.2,2774.0,0.52916158]
[1749643521412,0.30146405,2774.2,2773.9,0.55]
[1749643521817,0.30146405,2774.2,2774.0,0.19843442]
[1749643522001,0.30146405,2774.2,2773.9,0.55]
[1749643522194,0.30146405,2774.2,2774.1,10.55]
[1749643522393,0.30146405,2774.2,2774.1,12.85161948]
[1749643522589,0.30146405,2774.2,2774.1,13.8988651]
[1749643522822,0.30146405,2774.2,2774.1,14.43459398]
[1749643522991,0.30146405,2774.2,2774.1,13.04994484]
[1749643523213,0.30146405,2774.2,2774.1,15.12683116]
[1749643523489,0.30146405,2774.2,2774.1,14.79623852]
[1749643523685,0.30146405,2774.2,2774.1,12.85156104]
[1749643523988,0.30146405,2774.2,2774.1,12.52096892]
[1749643524189,0.30146405,2774.2,2774.1,2.16552667]
[1749643524391,0.30146405,2774.2,2774.1,2.49653469]
[1749643524591,0.30146405,2774.2,2774.1,2.29817062]
[1749643524791,0.30146405,2774.2,2774.1,10.74837968]
[1749643525030,0.30146405,2774.2,2774.1,13.73917462]
[1749643525206,0.30146405,2774.2,2774.1,13.54080689]
[1749643525429,0.30146405,2774.2,2774.1,13.73917186]
[1749643525589,0.30146405,2774.2,2774.1,13.54080689]
[1749643525791,0.30146405,2774.2,2774.1,15.66907223]
[1749643526017,0.30146405,2774.2,2774.1,0.55]
[1749643526333,0.8223,2776.4,2774.4,0.55]
[1749643526628,0.8223,2775.2,2774.5,0.52903263]
[1749643526830,3.60347374,2775.1,2774.6,0.19839117]
[1749643527000,0.80291586,2775.0,2773.7,1.06445412]
[1749643527207,10.0,2774.9,2773.5,1.06445412]
[1749643527423,3.6043202,2774.5,2773.4,1.06445412]
[1749643527718,4.60395305,2774.8,2773.6,1.61445412]
[1749643527916,4.60395305,2774.8,2773.7,1.08121734]
[1749643527917,3.60396843,2774.8,2773.7,1.08121734]
[1749643528116,0.8223,2775.2,2773.7,1.61445412]
[1749643528291,3.60355015,2775.1,2773.7,10.55]
[1749643528492,0.80290908,2775.1,2774.0,1.61416149]
[1749643528941,0.8223,2775.2,2773.9,1.06416149]
[1749643529246,3.60347374,2775.1,2774.0,0.33201819]
[1749643529547,0.8223,2775.2,2774.1,0.53123538]
[1749643529548,3.60464277,2774.2,2774.1,0.53123538]
[1749643529847,3.60438298,2774.4,2774.1,0.19922392]
[1749643530026,0.8223,2775.2,2774.2,0.19921855]
[1749643530352,0.8223,2775.2,2773.4,1.06416149]
[1749643530631,3.60439265,2774.4,2773.6,0.55]
[1749643530832,3.60439265,2774.4,2773.4,1.06416149]
[1749643530833,5.589,2774.6,2773.4,1.06416149]
[1749643531033,3.60499185,2774.0,2773.2,1.06416149]
[1749643531332,0.30146405,2773.9,2773.2,1.06416149]
[1749643531537,0.30146405,2773.9,2773.3,11.06416149]
[1749643531752,0.30146405,2773.9,2773.5,0.55]
[1749643531952,0.30146405,2773.9,2773.7,10.55]
[1749643532124,0.30146405,2773.9,2773.8,0.55]
[1749643532329,0.30146405,2773.9,2773.8,1.58439771]
[1749643532539,0.30146405,2773.9,2773.8,1.2524]
[1749643532958,0.30146405,2773.9,2773.8,12.54821764]
[1749643533253,0.30146405,2773.9,2773.8,11.82175618]
[1749643533458,0.30146405,2773.9,2773.8,13.2410266]
[1749643533659,0.30146405,2773.9,2773.8,11.82174508]
[1749643533955,0.30146405,2773.9,2773.8,11.82176458]
[1749643534127,0.30146405,2773.9,2773.8,11.82175747]
[1749643534326,0.30146405,2773.9,2773.8,11.48405615]
[1749643534527,0.30146405,2773.9,2773.8,11.59010823]
[1749643534758,0.30146405,2773.9,2773.8,1.2524]
[1749643534957,0.30146405,2773.9,2773.8,11.2524]
[1749643535330,0.30146405,2773.9,2773.8,0.55]
[1749643535543,0.30146405,2773.9,2773.8,1.61496575]
[1749643535959,0.30146405,2773.9,2773.8,0.88771961]
[1749643536253,3.60282461,2775.6,2773.9,0.55]
[1749643536461,3.60376344,2774.9,2774.4,0.55]
[1749643536872,0.30146405,2775.5,2774.3,1.61519631]
[1749643537155,0.30146405,2775.5,2774.8,9.15968924]
[1749643537332,0.30146405,2775.5,2774.9,11.95280343]
[1749643537536,0.30146405,2775.5,2775.0,1.40278299]
[1749643537734,0.30146405,2775.5,2775.1,0.55]
[1749643538329,0.30146405,2775.5,2775.4,0.55]
[1749643538530,0.8143,2777.0,2775.4,11.2524]
[1749643538775,0.13380213,2776.9,2776.2,0.55]
[1749643538921,0.13380213,2776.9,2776.3,0.33744512]
[1749643539225,0.13380213,2776.9,2776.1,0.55]
[1749643539443,0.13380213,2776.9,2776.4,0.55]
[1749643539666,3.73499298,2776.9,2776.4,0.55]
[1749643539875,1.04882379,2776.9,2776.5,0.33744893]
[1749643540074,1.04882379,2776.9,2775.8,1.0667556]
[1749643540075,3.6022568,2776.1,2775.8,1.0667556]
[1749643540236,3.60186097,2776.4,2775.8,1.6167556]
[1749643540436,3.60230381,2776.1,2775.9,1.40428479]
[1749643540627,3.60243524,2775.9,2775.8,1.0667556]
[1749643540933,0.7747,2776.6,2775.6,1.0667556]
[1749643541117,3.6025336,2775.9,2775.7,1.40431511]
[1749643541323,3.6025336,2775.9,2775.7,1.0667556]
[1749643541324,3.60256502,2775.8,2775.7,1.0667556]
[1749643541555,3.60256502,2775.8,2775.5,1.4223408]
[1749643541556,3.60282461,2775.6,2775.5,1.0667556]
[1749643541762,3.60280184,2775.7,2775.5,1.07123568]
[1749643542072,3.60295442,2775.5,2775.4,1.07123568]
[1749643542271,3.60295442,2775.5,2775.4,0.33457601]
[1749643542472,3.60314678,2775.4,2775.3,1.07123568]
[1749643542675,3.60321406,2775.3,2775.2,1.07123568]
[1749643543023,3.60347374,2775.1,2775.0,1.07123568]
[1749643543365,3.6036036,2775.0,2774.9,1.07123568]
[1749643543658,0.66498802,2775.6,2774.9,1.40587386]
[1749643543822,1.00970381,2775.5,2774.9,1.07123568]
[1749643544018,3.6036036,2775.0,2774.9,1.07123568]
[1749643544260,3.6034828,2775.1,2774.7,1.07123568]
[1749643544261,3.60386334,2774.8,2774.7,1.07123568]
[1749643544460,3.60438292,2774.4,2774.2,1.4223408]
[1749643544665,3.60438292,2774.4,2774.0,1.4223408]
[1749643544666,3.60464277,2774.2,2774.0,1.4223408]
[1749643544868,3.60477271,2774.1,2774.0,1.4223408]
[1749643545065,5.445,2774.6,2773.8,1.4223408]
[1749643545223,6.34989583,2774.6,2773.9,1.75706905]
[1749643545426,6.34989583,2774.6,2774.0,0.33475129]
[1749643545625,6.34989583,2774.6,2773.8,1.4223408]
[1749643545626,5.445,2774.6,2773.8,1.4223408]
[1749643545943,6.2521,2774.9,2774.1,1.4223408]
[1749643546130,3.60432926,2774.5,2774.1,1.4223408]
[1749643546326,0.7933,2775.4,2774.1,0.55]
[1749643546526,0.7933,2775.4,2774.5,1.4223408]
[1749643546527,3.60408416,2774.7,2774.5,1.4223408]
[1749643546731,3.60406793,2774.7,2774.6,0.33467355]
[1749643546932,0.7933,2775.4,2774.4,0.55]
[1749643547131,0.7933,2775.4,2774.7,0.55]
[1749643547344,5.442,2775.7,2774.9,1.9723408]
[1749643547545,5.442,2775.8,2774.9,1.4223408]
[1749643547760,5.442,2775.8,2774.8,1.4223408]
[1749643547959,3.60329442,2775.3,2774.8,1.4223408]
[1749643548345,3.60321481,2775.3,2774.9,1.4223408]
[1749643548548,3.60297323,2775.5,2775.0,0.33500222]
[1749643548746,0.5442,2775.7,2774.9,1.4223408]
[1749643548945,0.59862,2775.6,2775.0,0.33501436]
[1749643549269,0.8233,2775.5,2774.7,1.4223408]
[1749643549476,3.60369706,2775.0,2774.7,1.4223408]
[1749643549646,4.42632989,2775.5,2774.7,1.4223408]
[1749643549847,3.60369768,2775.0,2774.8,0.33503976]
[1749643550048,3.6035541,2775.1,2774.9,0.33503279]
[1749643550278,0.50249499,2775.4,2774.6,1.4223408]
[1749643550573,3.60368332,2775.0,2774.6,1.4223408]
[1749643550776,3.60378345,2774.9,2774.6,1.4223408]
[1749643550974,5.4,2775.1,2774.7,0.33503717]
[1749643551151,3.60361139,2775.0,2774.8,0.3350324]
[1749643551344,3.60399322,2774.7,2774.6,1.4223408]